fUST/lending_fUST_20251022
["ID","MTS","AMOUNT","RATE_DAILY","PERIOD"]
[392009732,1761091173822,5000.0,0.00023938,2]
[392009733,1761091182318,5000.01,0.00023405,2]
[392009734,1761091182387,5000.0,0.00023405,2]
[392009735,1761091196760,5000.0,0.00023938,2]
[392009736,1761091212602,169.04807098,0.0003503,30]
[392009738,1761091219074,0.01,0.00023938,2]
[392009739,1761091219192,4999.99,0.00023938,2]
[392009741,1761091241264,5000.0,0.00023938,2]
[392009742,1761091246185,0.02,0.00020229,2]
[392009743,1761091246283,347.77,0.00020229,2]
[392009744,1761091246615,695.58,0.00022068,2]
[392009745,1761091247063,1043.37,0.00023907,2]
[392009746,1761091263636,5000.0,0.00023938,2]
[392009747,1761091286726,2913.29,0.00023938,2]
[392009748,1761091286809,2086.71,0.00023938,2]
[392009749,1761091297211,206.9896312,0.00023592,2]
[392009750,1761091309164,5000.0,0.00023938,2]
[392009751,1761091326170,321.23,0.00020466,2]
[392009752,1761091326597,642.47,0.00022326,2]
[392009753,1761091331588,1742.6103688,0.00023938,2]
[392009754,1761091331679,3257.3896312,0.00023938,2]
[392009755,1761091354878,5000.0,0.00023938,2]
[392009756,1761091377295,1742.6203688,0.00023938,2]
[392009757,1761091377388,3257.3796312,0.00023938,2]
[392009758,1761091399696,5000.0,0.00023938,2]
[392009759,1761091404903,308.97,0.00020209,2]
[392009760,1761091405308,617.93,0.00022046,2]
[392009761,1761091405714,815.7303688,0.00023883,2]
[392009762,1761091405809,111.1696312,0.00023883,2]
[392009763,1761091421783,5000.0,0.00023938,2]
[392009764,1761091444279,-2729.33425916,0.00023749,14]
[392009765,1761091444374,-300.0,0.00023989,2]
[392009766,1761091462318,-1399.183039,0.00023367,2]
[392009767,1761091465395,-2798.366078,0.00023367,2]
[392009768,1761091468575,-4403.277844,0.00023367,2]
[392009769,1761091480642,333.50342315,0.0001515,2]
[392009770,1761091483849,285.37,0.00020207,2]
[392009771,1761091484304,570.75,0.00022044,2]
[392009772,1761091491590,9143.89,0.00023,5]
[392009773,1761091491669,10000.01,0.00023,5]
[392009774,1761091491743,8227.4229498,0.00023,5]
[392009776,1761091557421,-5000.0,0.00023642,2]
[392009777,1761091563196,-288.0,0.00023989,2]
[392009778,1761091563304,-300.0,0.00023989,2]
[392009779,1761091565031,-274.48,0.00019057,2]
[392009780,1761091565062,-211.24914168,0.00019965,2]
[392009781,1761091566210,-337.70085832,0.00019965,2]
[392009782,1761091566311,-823.43,0.00020872,2]
[392009783,1761091566411,-1097.91,0.0002178,2]
[392009784,1761091566511,-1372.39,0.00022687,2]
[392009785,1761091566609,-1090.28828336,0.00023595,2]
[392009786,1761091575017,5000.0,0.00023367,2]
[392009787,1761091579996,-295.99291503,0.00023595,2]
[392009788,1761091582176,-258.15826098,0.00023595,2]
[392009789,1761091586980,5000.01,0.0002,7]
[392009790,1761091587062,10000.01,0.0002,7]
[392009791,1761091587147,10000.01,0.0002,7]
[392009792,1761091587231,10000.01,0.0002,7]
[392009793,1761091587311,10000.01,0.0002,7]
[392009794,1761091587391,10000.01,0.0002,7]
[392009795,1761091587473,10000.01,0.0002,7]
[392009796,1761091587560,10000.01,0.0002,7]
[392009797,1761091587641,10000.01,0.0002,7]
[392009798,1761091587731,10000.01,0.0002,7]
[392009799,1761091590124,-285.61960498,0.0002,7]
[392009800,1761091593183,-206.27986083,0.00019999,2]
[392009801,1761091593292,-500.0,0.00019999,2]
[392009802,1761091593378,-176.56711072,0.00019999,2]
[392009803,1761091593473,-500.0,0.00019999,2]
[392009804,1761091593563,-500.0,0.00019999,2]
[392009805,1761091593666,-500.0,0.00019999,2]
[392009806,1761091593777,-500.0,0.00019999,2]
[392009807,1761091594233,-500.0,0.00019999,2]
[392009808,1761091594321,-500.0,0.00019999,2]
[392009809,1761091594400,-500.0,0.00019999,2]
[392009810,1761091594503,-500.0,0.00019999,2]
[392009811,1761091594592,-500.0,0.00019999,2]
[392009812,1761091594704,-206.43739216,0.0002,7]
[392009813,1761091595010,-500.0,0.00019999,2]
[392009814,1761091595099,-472.48754757,0.00019999,2]
[392009815,1761091595202,-500.0,0.00019999,2]
[392009816,1761091595313,-500.0,0.00019999,2]
[392009817,1761091595408,-500.0,0.00019999,2]
[392009818,1761091595950,-500.0,0.00019999,2]
[392009819,1761091596060,-500.0,0.00019999,2]
[392009820,1761091596166,-500.0,0.00019999,2]
[392009821,1761091596259,-500.0,0.00019999,2]
[392009822,1761091596477,-500.0,0.00019999,2]
[392009823,1761091596572,-500.0,0.00019999,2]
[392009824,1761091596664,-500.0,0.00019999,2]
[392009825,1761091598747,-186.54607078,0.0002,7]
[392009826,1761091600425,-593.01278351,0.0002,7]
[392009827,1761091605263,-9751.29890241,0.0002,7]
[392009828,1761091606114,-293.08938649,0.0002,7]
[392009829,1761091606643,-10000.01,0.0002,7]
[392009830,1761091607127,-10000.01,0.0002,7]
[392009831,1761091607405,-10000.01,0.0002,7]
[392009832,1761091607842,-10000.01,0.0002,7]
[392009833,1761091607987,-400.16,0.0002,7]
[392009834,1761091608095,-2025.31414033,0.0002,7]
[392009835,1761091608179,-5949.38171934,0.0002,7]
[392009836,1761091608346,-4186.89918429,0.00020195,2]
[392009837,1761091608423,-214.28904878,0.00020299,2]
[392009838,1761091608504,-300.0,0.00020399,2]
[392009839,1761091608583,-297.63353386,0.00020399,2]
[392009840,1761091608866,-2.36646614,0.00020399,2]
[392009841,1761091609706,-168.49803109,0.00020399,2]
[392009842,1761091610543,-131.50196891,0.00020399,2]
[392009843,1761091610639,-300.0,0.00020399,2]
[392009844,1761091610731,-300.0,0.00020399,2]
[392009845,1761091610815,-300.0,0.00020399,2]
[392009846,1761091610910,-300.0,0.00020399,2]
[392009847,1761091610992,-300.0,0.00020399,2]
[392009848,1761091611078,-300.0,0.00020399,2]
[392009849,1761091611167,-300.0,0.00020399,2]
[392009850,1761091611256,-300.0,0.00020399,2]
[392009851,1761091611345,-300.0,0.00020399,2]
[392009852,1761091611433,-300.0,0.00020399,2]
[392009853,1761091611555,-300.0,0.00020399,2]
[392009854,1761091611651,-300.0,0.00020399,2]
[392009855,1761091611745,-600.0,0.00020399,2]
[392009856,1761091611832,-617.00606218,0.00022439,20]
[392009857,1761091612303,-102.99393782,0.00022439,20]
[392009858,1761091612402,-4794.02212436,0.00023367,2]
[392009859,1761091612747,-205.97787564,0.00023367,2]
[392009860,1761091618860,214.28904877,0.00022388,2]
[392009861,1761091621245,500.0,0.00019999,2]
[392009862,1761091621343,500.0,0.00019999,2]
[392009863,1761091621457,500.0,0.00019999,2]
[392009864,1761091621542,194.52269158,0.00019999,2]
[392009865,1761091621786,5000.0,0.00023367,2]
[392009866,1761091622676,302.55330211,0.00019999,2]
[392009867,1761091622764,500.0,0.00019999,2]
[392009868,1761091622851,500.0,0.00019999,2]
[392009869,1761091622951,528.4711434,0.00019999,2]
[392009870,1761091624310,500.0,0.00019999,2]
[392009871,1761091624421,348.21806286,0.00019999,2]
[392009872,1761091625547,-38.18671548,0.00019999,2]
[392009873,1761091625662,165.07709862,0.00019999,2]
[392009874,1761091625690,153.00381016,0.00019999,2]
[392009875,1761091625787,469.21963048,0.00019999,2]
[392009876,1761091625886,500.0,0.00019999,2]
[392009877,1761091625981,500.0,0.00019999,2]
[392009878,1761091626081,500.0,0.00019999,2]
[392009879,1761091626193,500.0,0.00019999,2]
[392009880,1761091626287,500.0,0.00019999,2]
[392009881,1761091626379,500.0,0.00019999,2]
[392009882,1761091626466,500.0,0.00019999,2]
[392009883,1761091626559,500.0,0.00019999,2]
[392009884,1761091626654,500.0,0.00019999,2]
[392009885,1761091626741,500.0,0.00019999,2]
[392009886,1761091626834,588.7590738,0.00019999,2]
[392009887,1761091626923,500.0,0.00019999,2]
[392009888,1761091627014,500.0,0.00019999,2]
[392009889,1761091627356,500.0,0.00019999,2]
[392009890,1761091627445,500.0,0.00019999,2]
[392009891,1761091627550,500.0,0.00019999,2]
[392009892,1761091627648,500.0,0.00019999,2]
[392009893,1761091627750,500.0,0.00019999,2]
[392009894,1761091627845,365.65786476,0.00019999,2]
[392009895,1761091627934,134.34213524,0.00019999,2]
[392009896,1761091628044,500.0,0.00019999,2]
[392009897,1761091637043,318.08090878,0.00023367,2]
[392009898,1761091641842,225.97,0.00019304,2]
[392009899,1761091642239,451.93,0.00020223,2]
[392009900,1761091642671,677.9,0.00021142,2]
[392009901,1761091643150,903.86,0.00022061,2]
[392009902,1761091643579,1129.83,0.00022981,2]
[392009903,1761091644754,696.912262,0.0002326,2]
[392009904,1761091650990,300.0,0.0002,2]
[392009905,1761091659123,500.0,0.00019999,2]
[392009906,1761091659217,500.0,0.00019999,2]
[392009907,1761091659651,500.0,0.00019999,2]
[392009908,1761091659958,500.0,0.00019999,2]
[392009909,1761091660287,500.0,0.00019999,2]
[392009910,1761091660619,500.0,0.00019999,2]
[392009911,1761091660958,500.0,0.00019999,2]
[392009912,1761091661330,500.0,0.00019999,2]
[392009913,1761091661578,300.0,0.0002,2]
[392009914,1761091661711,361.18469398,0.00019999,2]
[392009915,1761091661797,138.81530602,0.00019999,2]
[392009916,1761091662030,500.0,0.00019999,2]
[392009917,1761091662250,500.0,0.00019999,2]
[392009918,1761091662347,500.0,0.00019999,2]
[392009919,1761091662429,449.0,0.00019999,2]
[392009920,1761091664536,500.0,0.00019999,2]
[392009921,1761091670874,500.0,0.00019999,2]
[392009922,1761091670956,500.0,0.00019999,2]
[392009923,1761091671036,500.0,0.00019999,2]
[392009924,1761091671114,500.0,0.00019999,2]
[392009925,1761091671260,492.48705669,0.00019999,2]
[392009926,1761091671394,500.0,0.00019999,2]
[392009927,1761091671481,500.0,0.00019999,2]
[392009928,1761091671571,500.0,0.00019999,2]
[392009929,1761091671656,500.0,0.00019999,2]
[392009930,1761091674446,321.76,0.00019999,2]
[392009931,1761091674531,178.24,0.00019999,2]
[392009932,1761091674623,500.0,0.00019999,2]
[392009933,1761091674710,393.91179133,0.00019999,2]
[392009934,1761091680492,500.0,0.00019999,2]
[392009937,1761091680589,500.0,0.00019999,2]
[392009938,1761091680676,250.0,0.00019999,2]
[392009940,1761091688707,500.0,0.00019999,2]
[392009941,1761091688802,97.55584596,0.00019999,2]
[392009942,1761091688883,452.44415404,0.00019999,2]
[392009943,1761091688971,500.0,0.00019999,2]
[392009945,1761091689062,500.0,0.00019999,2]
[392009946,1761091689146,500.0,0.00019999,2]
[392009947,1761091689232,500.0,0.00019999,2]
[392009948,1761091689319,500.0,0.00019999,2]
[392009949,1761091689406,500.0,0.00019999,2]
[392009950,1761091698320,246.83,0.00019999,2]
[392009951,1761091702685,500.0,0.00019999,2]
[392009952,1761091702773,500.0,0.00019999,2]
[392009953,1761091702857,500.0,0.00019999,2]
[392009954,1761091702948,500.0,0.00019999,2]
[392009955,1761091703035,294.23762438,0.00019999,2]
[392009956,1761091703122,500.0,0.00019999,2]
[392009957,1761091703206,500.0,0.00019999,2]
[392009958,1761091711335,300.0,0.0002,2]
[392009959,1761091720571,182.83,0.00019315,2]
[392009960,1761091720704,196.0,0.00016,2]
[392009961,1761091720805,196.0,0.000163,2]
[392009962,1761091720892,196.0,0.000166,2]
[392009963,1761091720990,196.0,0.000169,2]
[392009964,1761091721086,196.0,0.000172,2]
[392009965,1761091721197,365.65,0.00020235,2]
[392009966,1761091721290,196.0,0.000175,2]
[392009967,1761091721378,196.0,0.000178,2]
[392009968,1761091721466,320.47517115,0.000181,2]
[392009969,1761091721564,465.54305043,0.00021155,2]
[392009970,1761091721651,82.93694957,0.00021155,2]
[392009971,1761091721839,731.31,0.00022074,2]
[392009972,1761091722219,173.75805576,0.00022994,2]
[392009973,1761091722311,740.38194424,0.00022994,2]
[392009974,1761091775357,-169.45224754,0.00023579,5]
[392009975,1761091775508,-4661.10550492,0.00023749,2]
[392009976,1761091782319,150.0,0.00019724,14]
[392009977,1761091784624,-338.89449508,0.00023749,2]
[392009978,1761091784703,-440.13892894,0.00023809,2]
[392009979,1761091784783,-1096.96,0.00023914,2]
[392009980,1761091784856,-300.0,0.00023989,2]
[392009986,1761091793725,-666.0,0.00023218,2]
[392009987,1761091796711,-5000.0,0.0002375,14]
[392009988,1761091797485,150.0,0.00019298,2]
[392009989,1761091797904,272.35,0.00020217,2]
[392009990,1761091798895,89.06355618,0.00021136,2]
[392009991,1761091800491,-152.11999997,0.00021136,2]
[392009992,1761091802742,-167.33644385,0.00021136,2]
[392009993,1761091802844,-544.7,0.00022055,2]
[392009994,1761091802949,-680.87,0.00022974,2]
[392009995,1761091803058,-817.04,0.00023892,2]
[392009996,1761091803155,-300.0,0.00023989,2]
[392009997,1761091805855,-169.45224754,0.00023579,5]
[392009998,1761091805959,-1200.0,0.00023989,2]
[392009999,1761091808880,-5874.67735392,0.0002399,2]
[392010000,1761091814875,-4374.26017191,0.0002399,2]
[392010001,1761091814970,-1251.48965618,0.0002399,2]
[392010002,1761091818239,-5000.0,0.0002375,14]
[392010003,1761091821277,0.01,0.0002399,2]
[392010004,1761091823971,-367.21931688,0.0002399,2]
[392010005,1761091824061,-419.69064786,0.0002399,2]
[392010006,1761091824938,2402446.51275699,0.00035034,30]
[392010344,1761091838538,-192.93208542,0.00024,3]
[392010345,1761091838548,-369.94496225,0.00024,3]
[392010346,1761091838558,-770.95661335,0.00024,3]
[392010347,1761091838568,-409.61197548,0.00024,3]
[392010348,1761091838578,-300.0,0.00024,2]
[392010349,1761091838587,-341.65056794,0.00024031,2]
[392010350,1761091838597,-614.97102229,0.00024031,2]
[392010351,1761091838606,-1093.2818174,0.00024031,2]
[392010352,1761091838616,-395.64793086,0.00024031,2]
[392010353,1761091838630,-712.16627555,0.00024031,2]
[392010354,1761091838639,-1266.07337876,0.00024031,2]
[392010355,1761091838649,-1638.44790193,0.00024049,3]
[392010356,1761091838659,-381.0,0.00024143,2]
[392010357,1761091838669,-381.0,0.00024157,2]
[392010358,1761091838679,-381.0,0.00024214,2]
[392010359,1761091838688,-381.0,0.00024235,2]
[392010360,1761091838699,-500.0,0.00024317,2]
[392010361,1761091838708,-200.0,0.00024317,10]
[392010362,1761091838718,-200.0,0.00024317,10]
[392010363,1761091838727,-200.0,0.00024317,10]
[392010364,1761091838737,-160.555616,0.00024317,10]
[392010365,1761091838746,-161.0,0.00024317,2]
[392010366,1761091838755,-500.0,0.00024317,2]
[392010367,1761091838764,-500.0,0.00024317,2]
[392010368,1761091838774,-447.91637474,0.00024317,2]
[392010369,1761091838783,-500.0,0.00024317,2]
[392010370,1761091838794,-500.0,0.00024317,2]
[392010371,1761091838803,-500.0,0.00024317,2]
[392010372,1761091838814,-500.0,0.00024317,2]
[392010373,1761091838823,-500.0,0.00024317,2]
[392010374,1761091838832,-500.0,0.00024317,2]
[392010375,1761091838842,-500.0,0.00024317,2]
[392010376,1761091838851,-500.0,0.00024317,2]
[392010377,1761091838860,-500.0,0.00024317,2]
[392010378,1761091838871,-256.12466213,0.00024317,2]
[392010379,1761091838880,-500.0,0.00024317,2]
[392010380,1761091838890,-500.0,0.00024317,2]
[392010381,1761091838899,-500.0,0.00024317,2]
[392010382,1761091838909,-500.0,0.00024317,2]
[392010383,1761091838920,-500.0,0.00024317,2]
[392010384,1761091838929,-500.0,0.00024317,2]
[392010385,1761091838939,-500.0,0.00024317,2]
[392010386,1761091838948,-500.0,0.00024317,2]
[392010387,1761091838958,-500.0,0.00024317,2]
[392010388,1761091838967,-500.0,0.00024317,2]
[392010389,1761091838978,-500.0,0.00024317,2]
[392010390,1761091838987,-500.0,0.00024317,2]
[392010391,1761091838997,-500.0,0.00024317,2]
[392010392,1761091839006,-500.0,0.00024317,2]
[392010393,1761091839016,-500.0,0.00024317,2]
[392010394,1761091839027,-549.19223466,0.00024317,2]
[392010395,1761091839037,-500.0,0.00024317,2]
[392010396,1761091839047,-500.0,0.00024317,2]
[392010397,1761091839057,-500.0,0.00024317,2]
[392010398,1761091839066,-500.0,0.00024317,2]
[392010399,1761091839076,-500.0,0.00024317,2]
[392010400,1761091839085,-500.0,0.00024317,2]
[392010401,1761091839095,-500.0,0.00024317,2]
[392010402,1761091839105,-500.0,0.00024317,2]
[392010403,1761091839114,-500.0,0.00024317,2]
[392010404,1761091839124,-454.71787194,0.00024317,2]
[392010405,1761091839133,-16958.7142992,0.00024318,2]
[392010406,1761091839144,-991.9182963,0.00024318,2]
[392010407,1761091839154,-4046.7503343,0.00024318,2]
[392010408,1761091839163,-269.0,0.00024351,2]
[392010409,1761091839174,-269.0,0.00024394,2]
[392010410,1761091839183,-269.0,0.00024411,2]
[392010411,1761091839192,-381.0,0.00024416,2]
[392010412,1761091839203,-162.789109,0.00024432,2]
[392010413,1761091839212,-340.72,0.00024438,2]
[392010414,1761091839222,-300.0,0.00024469,20]
[392010415,1761091839232,-300.0,0.00024469,20]
[392010416,1761091839241,-300.0,0.00024469,20]
[392010417,1761091839251,-300.0,0.00024469,20]
[392010418,1761091839260,-300.0,0.00024469,20]
[392010419,1761091839425,-300.0,0.00024469,20]
[392010420,1761091839435,-300.0,0.00024469,20]
[392010421,1761091839444,-300.0,0.00024469,20]
[392010422,1761091839454,-300.0,0.00024469,20]
[392010423,1761091839463,-300.0,0.00024469,20]
[392010424,1761091839472,-300.0,0.00024469,20]
[392010425,1761091839481,-300.0,0.00024469,20]
[392010426,1761091839491,-300.0,0.00024469,20]
[392010427,1761091839500,-300.0,0.00024469,20]
[392010428,1761091839510,-300.0,0.00024469,20]
[392010429,1761091839520,-3453.30285664,0.00024477,2]
[392010430,1761091839529,-10449.26583907,0.00024477,2]
[392010431,1761091839538,-381.0,0.00024538,2]
[392010432,1761091839549,-3057.65,0.00024567,10]
[392010433,1761091839558,-1976.26141466,0.00024567,2]
[392010434,1761091839567,-197.39236806,0.00024576,2]
[392010435,1761091839577,-227.97566217,0.00024576,2]
[392010436,1761091839586,-151.0,0.00024577,7]
[392010437,1761091839596,-151.0,0.00024577,7]
[392010438,1761091839605,-151.0,0.00024577,7]
[392010439,1761091839614,-151.0,0.00024577,7]
[392010440,1761091839626,-151.0,0.00024577,7]
[392010441,1761091839636,-151.0,0.00024577,7]
[392010442,1761091839645,-151.0,0.00024577,7]
[392010443,1761091839655,-151.0,0.00024577,7]
[392010444,1761091839664,-151.0,0.00024577,2]
[392010445,1761091839675,-161.392028,0.00024577,7]
[392010446,1761091839685,-151.0,0.00024577,7]
[392010447,1761091839694,-151.0,0.00024577,7]
[392010448,1761091839705,-167.30796,0.00024577,7]
[392010449,1761091839714,-151.0,0.00024577,7]
[392010450,1761091839724,-151.0,0.00024577,7]
[392010451,1761091839733,-151.0,0.00024577,7]
[392010452,1761091839743,-151.0,0.00024577,7]
[392010453,1761091839753,-351.379604,0.00024577,7]
[392010454,1761091839762,-351.379604,0.00024577,7]
[392010455,1761091839772,-351.379604,0.00024577,7]
[392010456,1761091839782,-351.379604,0.00024577,7]
[392010457,1761091839792,-151.0,0.00024577,7]
[392010458,1761091839802,-151.0,0.00024577,7]
[392010459,1761091839811,-174.006244,0.00024577,7]
[392010460,1761091839821,-1526.424252,0.00024577,7]
[392010461,1761091839831,-1526.424252,0.00024577,7]
[392010462,1761091839841,-1526.424252,0.00024577,7]
[392010463,1761091839851,-1526.424252,0.00024577,7]
[392010464,1761091839860,-151.0,0.00024577,7]
[392010465,1761091839870,-151.0,0.00024577,7]
[392010466,1761091839879,-151.0,0.00024577,7]
[392010467,1761091839889,-151.0,0.00024577,7]
[392010468,1761091839900,-151.0,0.00024577,7]
[392010469,1761091839910,-370000.0,0.00024577,2]
[392010470,1761091839920,-500.0,0.00024577,5]
[392010471,1761091839930,-409.44278702,0.00024598,2]
[392010472,1761091839939,-381.0,0.00024613,2]
[392010473,1761091839950,-500.0,0.00024658,2]
[392010474,1761091839959,-500.0,0.00024658,2]
[392010475,1761091839969,-500.0,0.00024658,2]
[392010476,1761091839978,-500.0,0.00024658,2]
[392010477,1761091839988,-500.0,0.00024658,2]
[392010478,1761091839997,-500.0,0.00024658,2]
[392010479,1761091840008,-500.0,0.00024658,2]
[392010480,1761091840018,-500.0,0.00024658,2]
[392010481,1761091840027,-500.0,0.00024658,2]
[392010482,1761091840036,-500.0,0.00024658,2]
[392010483,1761091840046,-500.0,0.00024658,2]
[392010484,1761091840056,-500.0,0.00024658,2]
[392010485,1761091840065,-500.0,0.00024658,2]
[392010486,1761091840075,-500.0,0.00024658,2]
[392010487,1761091840084,-444.27999206,0.00024658,2]
[392010488,1761091840094,-500.0,0.00024658,2]
[392010489,1761091840103,-500.0,0.00024658,2]
[392010490,1761091840113,-500.0,0.00024658,2]
[392010491,1761091840122,-500.0,0.00024658,2]
[392010492,1761091840132,-500.0,0.00024658,2]
[392010493,1761091840142,-500.0,0.00024658,2]
[392010494,1761091840152,-500.0,0.00024658,2]
[392010495,1761091840161,-500.0,0.00024658,2]
[392010496,1761091840170,-500.0,0.00024658,2]
[392010497,1761091840180,-500.0,0.00024658,2]
[392010498,1761091840189,-1000.0,0.00024665,2]
[392010499,1761091840199,-1000.0,0.00024665,2]
[392010500,1761091840208,-1000.0,0.00024665,2]
[392010501,1761091840217,-1000.0,0.00024665,2]
[392010502,1761091840227,-1000.0,0.00024665,2]
[392010503,1761091840236,-155.0,0.00024676,2]
[392010504,1761091840246,-269.0,0.00024677,2]
[392010505,1761091840255,-227.94913904,0.00024678,2]
[392010506,1761091840264,-150.0,0.0002468,2]
[392010507,1761091840273,-300.0,0.0002468,2]
[392010508,1761091840283,-450.0,0.0002468,2]
[392010509,1761091840293,-600.0,0.0002468,2]
[392010510,1761091840302,-750.0,0.0002468,2]
[392010511,1761091840312,-802.3336804,0.0002468,2]
[392010512,1761091840322,-151.0,0.0002468,7]
[392010513,1761091840331,-151.0,0.0002468,7]
[392010514,1761091840340,-155.559281,0.0002468,7]
[392010515,1761091840350,-152.82338,0.0002468,7]
[392010516,1761091840359,-151.0,0.0002468,2]
[392010517,1761091840369,-151.0,0.0002468,7]
[392010518,1761091840378,-151.0,0.0002468,7]
[392010519,1761091840388,-151.0,0.0002468,7]
[392010520,1761091840397,-151.0,0.0002468,7]
[392010521,1761091840407,-151.0,0.0002468,7]
[392010522,1761091840416,-151.0,0.0002468,7]
[392010523,1761091840426,-1000.0,0.0002468,2]
[392010524,1761091840435,-1000.0,0.0002468,2]
[392010525,1761091840445,-1000.0,0.0002468,2]
[392010526,1761091840455,-151.0,0.0002468,7]
[392010527,1761091840465,-151.0,0.0002468,7]
[392010528,1761091840476,-151.0,0.0002468,7]
[392010529,1761091840485,-151.0,0.0002468,7]
[392010530,1761091840495,-151.0,0.0002468,7]
[392010531,1761091840504,-151.0,0.0002468,7]
[392010532,1761091840514,-151.0,0.0002468,7]
[392010533,1761091840524,-151.0,0.0002468,7]
[392010534,1761091840533,-151.0,0.0002468,7]
[392010535,1761091840543,-151.0,0.0002468,7]
[392010536,1761091840553,-151.0,0.0002468,7]
[392010537,1761091840562,-151.0,0.0002468,7]
[392010538,1761091840571,-151.0,0.0002468,2]
[392010539,1761091840581,-151.0,0.0002468,7]
[392010540,1761091840590,-195.238872,0.0002468,7]
[392010541,1761091840600,-151.0,0.0002468,7]
[392010542,1761091840609,-151.0,0.0002468,7]
[392010543,1761091840619,-151.0,0.0002468,7]
[392010544,1761091840632,-151.0,0.0002468,7]
[392010545,1761091840642,-151.0,0.0002468,7]
[392010546,1761091840651,-151.0,0.0002468,7]
[392010547,1761091840661,-381.0,0.00024721,2]
[392010548,1761091840671,-381.0,0.0002476,2]
[392010549,1761091840680,-5704.18735735,0.00024772,2]
[392010550,1761091840689,-151.0,0.00024772,7]
[392010551,1761091840699,-209.688996,0.00024772,7]
[392010552,1761091840709,-151.0,0.00024772,7]
[392010553,1761091840718,-351.379604,0.00024772,7]
[392010554,1761091840728,-351.379604,0.00024772,7]
[392010555,1761091840737,-351.379604,0.00024772,7]
[392010556,1761091840747,-351.379604,0.00024772,7]
[392010557,1761091840757,-151.0,0.00024772,7]
[392010558,1761091840767,-151.0,0.00024772,7]
[392010559,1761091840776,-151.0,0.00024772,7]
[392010560,1761091840786,-381.0,0.00024779,2]
[392010561,1761091840796,-151.0,0.00024796,7]
[392010562,1761091840805,-162.040643,0.00024796,7]
[392010563,1761091840815,-151.0,0.00024796,7]
[392010564,1761091840824,-151.0,0.00024796,7]
[392010565,1761091840832,-1526.424252,0.00024796,7]
[392010566,1761091840841,-1526.424252,0.00024796,7]
[392010568,1761091840850,-1526.424252,0.00024796,7]
[392010570,1761091840860,-1526.424252,0.00024796,7]
[392010572,1761091840869,-151.0,0.000248,7]
[392010574,1761091840877,-151.0,0.000248,7]
[392010576,1761091840887,-239.99197,0.000248,7]
[392010577,1761091840896,-151.0,0.000248,7]
[392010578,1761091840906,-151.0,0.000248,7]
[392010579,1761091840915,-151.0,0.000248,7]
[392010580,1761091840924,-151.0,0.000248,7]
[392010581,1761091840934,-151.0,0.000248,7]
[392010582,1761091840944,-151.0,0.000248,7]
[392010583,1761091840953,-151.0,0.000248,7]
[392010584,1761091840962,-252.263206,0.000248,7]
[392010586,1761091840971,-19853.9943695,0.000248,2]